bitfinex-derivatives/quotes_ETHF0:USTF0_20210102
["timestamp","ask_amount","ask_price","bid_price","bid_amount"]
[1609569896150,0.24867276,734.92,734.9,6.01438]
[1609569897053,0.24866424,734.91,734.9,6.01438]
[1609569899957,6.26304088,734.96,734.9,6.01438]
[1609569902861,0.248642,734.94,734.9,6.01438]
[1609569903964,6.01438,734.96,734.9,6.01438]
[1609569908665,6.01438,734.96,734.92,91.7777]
[1609569920177,6.01438,734.96,734.9,6.01438]
[1609569921180,6.01438,734.96,734.91,15.3434]
[1609569921382,6.01438,734.96,734.9,6.01438]
[1609569926185,1.1230441,735.07,734.99,100.3119]
[1609569926385,1.1230441,735.07,734.99,104.1439]
[1609569927985,1.1230441,735.07,735.06,6.01438]
[1609569930487,1.1230441,735.07,735.06,21.01438]
[1609569935394,0.24849254,735.51,735.06,21.01438]
[1609569935594,0.24849254,735.51,735.42,15.0]
[1609569935801,0.24841664,735.6,735.5,77.2627]
[1609569935994,0.24841664,735.6,735.59,6.01438]
[1609569936195,0.24841664,735.6,735.59,9.81138]
[1609569938495,0.24841664,735.6,735.59,96.23508]
[1609569938896,76.5076,736.58,735.59,96.23508]
[1609569938897,0.24841144,735.88,735.59,96.23508]
[1609569939996,6.01438,735.8,735.78,6.01438]
[1609569940897,6.01438,735.8,735.78,5.99725]
[1609569941598,0.82805264,735.82,735.78,5.99725]
[1609569941800,0.82805264,735.82,735.78,10.35925]
[1609569943903,0.82804038,735.83,735.78,10.35925]
[1609569946005,6.01438,735.82,735.78,10.35925]
[1609569946603,0.82804038,735.83,735.78,10.35925]
[1609569948803,2.64972921,736.01,735.78,10.35925]
[1609569948804,0.24839558,735.82,735.78,10.35925]
[1609569949303,0.24839558,735.82,735.79,88.729]
[1609569949501,0.24839558,735.82,735.78,10.35925]
[1609569949703,0.24839558,735.82,735.81,97.6506]
[1609569949903,0.24838627,735.86,735.81,97.6506]
[1609569951204,0.24836234,735.92,735.81,97.6506]
[1609569952204,0.24836682,736.02,735.91,6.01438]
[1609569953605,0.24835796,736.0,735.91,6.01438]
[1609569954205,0.24835796,736.0,735.99,6.01438]
[1609569954408,0.24835796,736.0,735.99,24.97238]
[1609569955105,0.24835127,736.04,735.99,10.46238]
[1609569957409,0.24830999,736.06,735.99,10.46238]
[1609569963514,0.24830999,736.06,736.05,106.9128]
[1609569964416,0.24822606,736.19,736.05,106.9128]
[1609569965016,1.12021527,736.2,736.05,106.9128]
[1609569966218,1.12021527,736.2,736.19,6.01438]
[1609569966417,1.12021527,736.2,736.19,10.53838]
[1609569968717,1.12021527,736.2,736.19,96.87798]
[1609569979319,1.12021527,736.2,736.19,10.53838]
[1609569980522,0.16540043,736.62,736.19,10.53838]
[1609569980924,0.16539666,736.77,736.19,10.53838]
[1609569981123,0.16539666,736.77,736.43,102.3196]
[1609569981323,0.16539666,736.77,736.43,106.9716]
[1609569981523,0.16539502,736.78,736.43,106.9716]
[1609569982426,0.16539502,736.78,736.77,6.01438]
[1609569982625,0.16539502,736.78,736.77,10.46538]
[1609569985729,0.16539316,736.79,736.77,10.46538]
[1609569986230,0.16539324,736.83,736.77,10.46538]
[1609569987332,0.16539272,736.82,736.77,10.46538]
[1609569989431,0.16538834,736.84,736.77,10.46538]
[1609569990637,0.16538944,736.83,736.77,10.46538]
[1609569992336,0.16538944,736.83,736.81,93.5743]
[1609569992734,0.24807646,736.83,736.81,93.5743]
[1609569993438,0.2480667,736.9,736.81,93.5743]
[1609569994337,0.24805003,736.89,736.81,93.5743]
[1609569994537,0.24805003,736.89,736.88,6.01438]
[1609570007158,0.24805003,736.89,736.88,106.33078]
[1609570008258,0.24805003,736.89,736.88,6.01438]
[1609570013662,8.27660266,737.34,736.88,6.01438]
[1609570013663,0.16530525,736.95,736.88,6.01438]
[1609570014264,3.30610501,737.25,736.88,6.01438]
[1609570014265,0.16530017,737.28,736.88,6.01438]
[1609570014667,0.16530017,737.28,737.27,6.01438]
[1609570014868,0.16530017,737.28,737.27,10.59838]
[1609570016971,0.24850017,737.28,737.27,4.584]
[1609570018580,0.24850017,737.28,737.27,10.59838]
[1609570026485,0.0832,737.28,737.27,10.59838]
[1609570038301,0.0832,737.28,737.27,102.92488]
[1609570038501,0.16527503,737.31,737.27,102.92488]
[1609570039202,1.11738644,737.33,737.27,102.92488]
[1609570040404,1.11738644,737.33,737.27,10.59838]
[1609570041906,1.11738644,737.33,737.28,15.0]
[1609570043309,1.11738644,737.33,737.27,10.59838]
[1609570046511,1.11738644,737.33,737.28,15.0]
[1609570047712,1.11738644,737.33,737.27,10.59838]
[1609570049014,0.16515436,737.86,737.27,10.59838]
[1609570049215,8.035,739.75,737.27,10.59838]
[1609570049216,0.16514854,737.85,737.55,110.7707]
[1609570050317,1.32118829,737.94,737.55,110.7707]
[1609570050318,0.1651418,737.9,737.55,110.7707]
[1609570050517,0.1651418,737.9,737.55,115.3657]
[1609570050717,0.1651418,737.9,737.89,6.01438]
[1609570050917,0.1651418,737.9,737.89,9.79438]
[1609570052422,0.16514285,737.91,737.89,9.79438]
[1609570053220,0.16514523,737.9,737.89,9.79438]
[1609570053921,0.16514523,737.9,737.89,9.77901]
[1609570055922,0.16514523,737.9,737.89,20.94231]
[1609570060936,1.9810988,738.08,737.89,20.94231]
[1609570062734,1.23818675,738.36,737.89,20.94231]
[1609570062735,1.98111628,738.31,737.89,20.94231]
[1609570062933,1.98111628,738.31,738.07,6.01438]
[1609570063333,1.98111628,738.31,738.07,18.36108]
[1609570063532,1.98111628,738.31,738.07,22.87808]
[1609570064432,1.98111628,738.31,738.07,10.53138]
[1609570064633,1.98111628,738.31,738.28,96.2507]
[1609570064832,1.98111628,738.31,738.3,6.01438]
[1609570069739,15.0,738.38,738.3,6.01438]
[1609570070641,15.0,738.37,738.3,6.01438]
[1609570071040,6.01438,738.41,738.3,6.01438]
[1609570071240,1.98090748,738.57,738.3,6.01438]
[1609570071741,94.4928,739.11,738.3,6.01438]
[1609570071742,1.98071613,738.34,738.3,6.01438]
[1609570072542,5.78534168,738.56,738.3,6.01438]
[1609570072543,1.23795506,738.44,738.3,6.01438]
[1609570072843,1.23795506,738.44,738.43,6.01438]
[1609570073042,1.23795506,738.44,738.43,10.84738]
[1609570073743,3.09528571,738.45,738.43,10.84738]
[1609570074846,1.11455761,738.45,738.43,10.84738]
[1609570084350,1.98007694,738.61,738.43,10.84738]
[1609570084550,1.98007694,738.61,738.6,92.0928]
[1609570084951,1.98007694,738.61,738.6,102.77218]
[1609570085550,1.98007694,738.61,738.6,10.67938]
[1609570085751,1.97935566,738.8,738.6,10.67938]
[1609570086951,1.97935566,738.8,738.79,6.01438]
[1609570087153,1.97938923,739.0,738.79,9.87938]
[1609570088553,1.9795884,738.99,738.79,9.87938]
[1609570088952,1.9795884,738.99,738.98,6.01438]
[1609570089153,1.9795884,738.99,738.98,10.88838]
[1609570090255,3.29974749,738.99,738.98,10.88838]
[1609570090654,18.29974749,738.99,738.98,10.88838]
[1609570091763,3.29974749,738.99,738.98,10.88838]
[1609570091963,18.29974749,738.99,738.98,10.88838]
[1609570092163,18.29974749,738.99,738.98,4.874]
[1609570092465,15.0,738.99,738.98,4.874]
[1609570093064,21.01438,738.99,738.98,4.874]
[1609570094165,15.0,738.99,738.79,3.865]
[1609570094366,5.78304798,739.0,738.67,104.3884]
[1609570095166,5.78304798,739.0,738.99,6.01438]
[1609570097668,20.78304798,739.0,738.99,6.01438]
[1609570098669,5.78304798,739.0,738.99,6.01438]
[1609570098869,20.78304798,739.0,738.99,6.01438]
[1609570099070,20.78304798,739.0,738.93,3.516]
[1609570099269,26.79742798,739.0,738.95,6.01438]
[1609570099769,11.79742798,739.0,738.95,6.01438]
[1609570100071,1.23754056,738.99,738.95,6.01438]
[1609570100672,1.23754056,738.99,738.93,3.516]
[1609570100872,1.23754056,738.99,738.6,4.665]
[1609570101071,1.23754056,738.99,738.43,99.7111]
[1609570101270,6.01438,738.87,738.43,99.7111]
[1609570102472,1.23754056,738.99,738.43,99.7111]
[1609570103274,1.23754056,738.99,738.98,6.01438]
[1609570103474,1.23754056,738.99,738.98,8.98338]
[1609570104676,5.7833209,739.03,738.98,8.98338]
[1609570106078,3.299721,739.01,738.98,8.98338]
[1609570107180,3.29972962,739.06,738.98,8.98338]
[1609570108478,3.29966887,739.05,738.98,8.98338]
[1609570109580,5.78277617,739.13,738.98,8.98338]
[1609570110286,6.01438,739.17,738.98,8.98338]
[1609570110287,2.63976715,738.99,738.98,8.98338]
[1609570111786,3.29956574,739.05,738.98,8.98338]
[1609570112685,2.6396569,739.01,738.98,8.98338]
[1609570113689,2.63966211,738.99,738.98,8.98338]
[1609570115494,2.63949422,739.09,738.98,8.98338]
[1609570116892,2.63927395,739.08,738.98,8.98338]
[1609570117292,2.63927395,739.08,739.07,6.01438]
[1609570119392,8.25597881,739.3,739.07,6.01438]
[1609570119393,2.63921509,739.17,739.07,6.01438]
[1609570120892,2.63901521,739.15,739.07,6.01438]
[1609570121491,2.63901381,739.17,739.07,6.01438]
[1609570122295,2.63891265,739.19,739.07,6.01438]
[1609570123293,2.63891265,739.19,739.18,6.01438]
[1609570123494,2.63891265,739.19,739.18,9.76638]
[1609570123995,6.01438,739.38,739.18,9.76638]
[1609570123996,2.6386902,739.22,739.18,9.76638]
[1609570124799,2.63852255,739.34,739.18,9.76638]
[1609570125399,2.63852255,739.34,739.3,6.01438]
[1609570127201,2.63849173,739.36,739.3,6.01438]
[1609570128302,2.63848378,739.37,739.3,6.01438]
[1609570129902,2.63850933,739.39,739.3,6.01438]
[1609570130501,2.63850933,739.39,739.18,3.752]
[1609570130903,2.63850933,739.39,738.98,2.969]
[1609570131102,2.63850933,739.39,738.8,78.0298]
[1609570131402,2.63889269,739.36,739.3,6.01438]
[1609570131602,2.63889269,739.36,739.3,10.64238]
[1609570132606,3.29857635,739.32,739.3,10.64238]
[1609570134107,3.29819236,739.36,739.3,10.64238]
[1609570136217,2.6386398,739.36,739.3,10.64238]
[1609570137118,2.6385913,739.33,739.3,10.64238]
[1609570137720,2.63848182,739.37,739.3,10.64238]
[1609570138722,2.63843586,739.41,739.3,10.64238]
[1609570139724,2.63857365,739.4,739.3,10.64238]
[1609570140623,2.6384842,739.37,739.3,10.64238]
[1609570141723,2.63854766,739.4,739.3,10.64238]
[1609570142425,2.63858061,739.37,739.3,10.64238]
[1609570144025,6.01438,739.46,739.3,10.64238]
[1609570144026,2.63847117,739.36,739.3,10.64238]
[1609570145029,2.63834259,739.32,739.3,10.64238]
[1609570146329,2.63812829,739.33,739.3,10.64238]
[1609570147629,2.63822629,739.32,739.3,10.64238]
[1609570147828,2.63822629,739.32,739.3,4.628]
[1609570148029,2.63822629,739.32,738.83,100.0193]
[1609570148431,6.01438,739.48,738.83,100.0193]
[1609570148432,3.29774477,739.35,738.83,100.0193]
[1609570149529,2.63804977,739.25,738.83,100.0193]
[1609570150234,2.63805341,739.26,738.83,100.0193]
[1609570150631,2.63805341,739.26,738.83,104.8473]
[1609570151432,2.63805341,739.26,739.25,6.01438]
[1609570151631,2.63805341,739.26,739.25,8.99038]
[1609570153832,2.63815661,739.28,739.25,8.99038]
[1609570154434,3.74983092,739.31,739.25,8.99038]
[1609570154633,3.74983092,739.31,739.28,0.3246]
[1609570155936,1.11172879,739.31,739.28,0.3246]
[1609570184579,1.11172879,739.31,739.25,8.99038]
[1609570203007,1.11172879,739.31,739.26,15.0]
[1609570203208,2.63745829,739.71,739.46,15.0]
[1609570203409,2.63745829,739.71,739.46,18.863]
[1609570203809,2.63745829,739.71,739.46,3.863]
[1609570204010,2.63745829,739.71,739.7,6.01438]
[1609570204212,2.63745829,739.71,739.7,9.21938]
[1609570204412,2.637079,739.86,739.7,9.21938]
[1609570205215,2.637079,739.86,739.7,3.205]
[1609570205415,15.0,739.85,739.7,3.205]
[1609570205813,2.637079,739.86,739.7,3.205]
[1609570206014,6.01438,739.74,739.71,6.01438]
[1609570206413,2.637079,739.86,739.71,6.01438]
[1609570207214,2.63718404,739.74,739.71,6.01438]
[1609570208417,2.63718404,739.74,739.73,14.3767]
[1609570209820,2.63711621,739.8,739.73,14.3767]
[1609570210020,2.63711621,739.8,739.79,6.01438]
[1609570210824,2.63717632,739.84,739.79,6.01438]
[1609570212625,2.63722835,739.81,739.79,6.01438]
[1609570213325,3.29656214,739.86,739.79,6.01438]
[1609570214325,2.63726406,739.8,739.79,6.01438]
[1609570214724,2.63726406,739.8,739.73,14.3767]
[1609570216132,6.01438,739.76,739.73,14.3767]
[1609570216335,6.01438,739.76,739.7,3.205]
[1609570216336,21.01438,739.76,739.7,3.205]
[1609570216531,21.01438,739.76,739.68,6.01438]
[1609570216833,6.01438,739.76,739.68,6.01438]
[1609570217234,2.63734924,739.73,739.68,6.01438]
[1609570219735,2.63729217,739.72,739.68,6.01438]
[1609570221338,6.01438,739.84,739.68,6.01438]
[1609570221339,2.63724009,739.74,739.68,6.01438]
[1609570221539,2.63724009,739.74,739.68,9.87638]
[1609570221741,2.63726021,739.82,739.68,9.87638]
[1609570222241,2.63726021,739.82,739.81,6.01438]
[1609570222441,3.29656039,739.89,739.81,6.01438]
[1609570223842,2.63720993,739.82,739.81,6.01438]
[1609570224942,2.63721861,739.83,739.81,6.01438]
[1609570225743,2.63720191,739.84,739.81,6.01438]
[1609570225942,2.63720191,739.84,739.83,11.6982]
[1609570227444,3.29644158,739.92,739.83,11.6982]
[1609570227845,2.63717172,739.97,739.83,11.6982]
[1609570228046,2.63717172,739.97,739.81,6.01438]
[1609570228245,2.63717172,739.97,739.96,6.01438]
[1609570229248,21.01438,740.16,739.96,6.01438]
[1609570229249,2.63718551,739.98,739.96,6.01438]
[1609570229447,2.63718551,739.98,739.75,90.5323]
[1609570229646,2.63718551,739.98,739.68,3.862]
[1609570229847,2.63718551,739.98,739.46,3.863]
[1609570230049,2.63718551,739.98,739.42,78.0025]
[1609570230249,3.29654986,739.98,739.95,6.01438]
[1609570230649,15.0,739.97,739.95,6.01438]
[1609570230852,15.0,739.97,739.78,4.453]
[1609570231153,18.29654827,739.97,739.78,4.453]
[1609570231755,3.29654827,739.97,739.78,4.453]
[1609570232152,3.29654827,739.97,739.96,6.01438]
[1609570232353,5.77702006,740.02,739.96,6.01438]
[1609570233052,5.77702006,740.02,739.78,4.453]
[1609570233456,3.726,740.13,739.78,4.453]
[1609570233457,3.2963389,739.97,739.78,4.453]
[1609570234160,3.29629849,739.98,739.96,6.01438]
[1609570234959,3.29630226,740.0,739.96,6.01438]
[1609570236961,3.29630226,740.0,739.78,4.453]
[1609570237159,3.29630226,740.0,739.59,82.1642]
[1609570237360,3.2963733,740.0,739.59,82.1642]
[1609570238161,2.63705115,739.92,739.59,82.1642]
[1609570239162,3.2963733,740.0,739.59,82.1642]
[1609570239564,2.63688809,739.94,739.59,85.6882]
[1609570240162,2.63688809,739.94,739.93,6.01438]
[1609570240964,2.63690676,739.98,739.93,6.01438]
[1609570241364,2.63690676,739.98,739.79,4.745]
[1609570242167,2.63690676,739.98,739.95,6.01438]
[1609570242766,3.29629522,740.0,739.95,6.01438]
[1609570243264,15.0,739.99,739.95,6.01438]
[1609570244165,6.01438,739.96,739.95,6.01438]
[1609570244369,21.01438,739.96,739.95,6.01438]
[1609570245572,21.01438,739.96,739.79,4.745]
[1609570245773,21.01438,739.96,739.59,85.6882]
[1609570246172,21.01438,739.96,739.71,6.01438]
[1609570246872,6.01438,739.96,739.59,85.6882]
[1609570247273,15.0,739.95,739.59,85.6882]
[1609570247673,2.63718852,739.77,739.59,85.6882]
[1609570248175,2.63718852,739.77,739.76,6.01438]
[1609570248376,2.63718852,739.77,739.76,9.48538]
[1609570249174,2.63719499,739.79,739.76,9.48538]
[1609570250374,2.63719086,739.81,739.76,9.48538]
[1609570251176,2.63713868,739.8,739.76,9.48538]
[1609570254186,2.63729784,739.81,739.76,9.48538]
[1609570255686,2.6371905,739.83,739.76,9.48538]
[1609570257388,2.63723904,739.86,739.76,9.48538]
[1609570258687,2.63723904,739.86,739.76,3.471]
[1609570258887,2.63723904,739.86,739.59,85.6882]
[1609570259088,2.63723904,739.86,739.85,6.01438]
[1609570259289,2.63723904,739.86,739.59,85.6882]
[1609570260790,2.63734458,739.84,739.59,85.6882]
[1609570261191,2.63734458,739.84,739.83,6.01438]
[1609570261889,1.09475582,761.07,739.83,6.01438]
[1609570261890,3.29661179,739.88,739.83,6.01438]
[1609570263190,6.01438,739.84,739.83,6.01438]
[1609570272307,3.29663083,739.88,739.79,3.638]
[1609570272509,3.29663083,739.88,739.59,85.6882]
[1609570272707,15.0,739.87,739.59,3.524]
[1609570272909,15.0,739.87,739.25,2.976]
[1609570273110,15.0,739.87,739.1,78.5105]
[1609570273311,6.01438,739.51,739.47,6.01438]
[1609570275210,6.01438,739.51,739.17,6.01438]
[1609570276813,2.63809096,739.44,739.17,6.01438]
[1609570277310,6.01438,739.3,739.26,6.01438]
[1609570277911,6.01438,739.3,738.83,112.835]
[1609570278311,21.01438,739.3,738.83,112.835]
[1609570278714,6.01438,739.3,738.83,112.835]
[1609570279313,6.01438,739.2,739.01,6.01438]
[1609570281318,2.63885088,739.23,739.1,6.01438]
[1609570282519,2.63892878,739.25,739.1,6.01438]
[1609570283321,6.01438,739.11,739.1,6.01438]
[1609570283722,3.29866098,739.32,739.1,6.01438]
[1609570283723,2.63887409,739.24,739.1,6.01438]
[1609570284924,2.63856337,739.28,739.1,6.01438]
[1609570285323,2.63856337,739.28,739.27,6.01438]
[1609570285724,2.63856337,739.28,739.22,3.137]
[1609570286924,6.01438,739.32,739.22,3.137]
[1609570287526,6.01438,739.23,739.22,3.137]
[1609570289730,6.01438,739.23,739.07,4.039]
[1609570289930,6.01438,739.23,739.0,6.01438]
[1609570291232,6.01438,739.23,738.83,112.835]
[1609570291431,6.01438,738.98,738.83,4.828]
[1609570291634,6.01438,738.98,738.48,78.4728]
[1609570291831,6.01438,738.98,738.21,14.04271233]
[1609570292032,6.01438,738.98,738.18,14.05111486]
[1609570292233,11.9755,738.97,738.18,14.05111486]
[1609570292432,16.7685,738.97,738.18,14.05111486]
[1609570293436,31.7685,738.97,738.18,14.05111486]
[1609570293834,16.7685,738.97,738.18,14.05111486]
[1609570294035,16.7685,738.97,738.11,108.68038483]
[1609570294036,2.64086366,738.88,738.11,91.5068]
[1609570295034,17.64086366,738.88,738.11,91.5068]
[1609570295234,17.64086366,738.88,737.91,14.08124087]
[1609570295435,105.4236,738.85,738.07,6.01438]
[1609570295635,15.0,738.84,737.91,14.08124087]
[1609570296238,15.0,738.84,737.68,20.33957014]
[1609570296239,2.64162979,738.64,737.68,14.10903982]
[1609570296836,15.0,738.63,737.68,14.10903982]
[1609570297036,79.4738,738.42,737.68,14.10903982]
[1609570297237,83.9058,738.42,737.47,14.13077737]
[1609570297438,4.432,738.42,737.57,6.01438]
[1609570297640,10.8653,738.41,737.58,104.7548]
[1609570297841,10.8653,738.41,737.57,10.83538]
[1609570298037,10.8653,738.41,737.57,4.821]
[1609570298841,1.98177027,738.2,737.57,4.821]
[1609570299340,11.6394,738.17,737.57,4.821]
[1609570299540,6.01438,737.58,737.57,4.821]
[1609570300342,6.01438,737.58,737.28,14.15565307]
[1609570300542,6.01438,737.58,737.0,76.4469]
[1609570300543,6.01438,737.58,737.09,14.17716605]
[1609570301342,111.2925,737.55,737.09,14.17716605]
[1609570301543,6.01438,737.1,737.09,14.17716605]
[1609570301944,6.01438,737.1,736.9,14.20472458]
[1609570302745,6.01438,737.1,736.53,84.7468]
[1609570303548,6.01438,736.54,736.53,84.7468]
[1609570303746,6.01438,736.54,736.42,14.25610122]
[1609570305550,6.01438,736.43,736.42,14.25610122]
[1609570306848,4.705,736.65,736.42,14.25610122]
[1609570307450,6.01438,736.8,736.62,6.01438]
[1609570309051,3.926,736.95,736.62,6.01438]
[1609570309454,3.926,736.95,736.94,6.01438]
[1609570310057,0.16533548,737.09,736.94,6.01438]
[1609570310457,0.16532245,737.18,736.94,6.01438]
[1609570311460,0.16532245,737.18,736.93,4.657]
[1609570311461,6.17968636,737.29,737.17,6.01438]
[1609570312259,6.01438,737.29,737.17,6.01438]
[1609570312560,6.01438,737.29,737.12,3.971]
[1609570313160,6.01438,737.29,736.93,4.657]
[1609570313560,6.01438,737.03,736.93,4.657]
[1609570315160,6.01438,737.03,736.54,4.319]
[1609570315462,6.01438,736.82,736.62,6.01438]
[1609570315661,0.16534347,737.15,736.62,6.01438]
[1609570315862,4.775,737.37,736.62,6.01438]
[1609570315863,0.16535125,737.12,736.62,6.01438]
[1609570316061,0.16535125,737.12,736.62,9.21938]
[1609570317561,6.01438,737.07,736.95,6.01438]
[1609570318362,0.16533588,737.08,736.95,6.01438]
[1609570318563,0.16533588,737.08,736.95,9.82238]
[1609570318764,0.16530876,737.17,736.95,9.82238]
[1609570319666,0.16530876,737.17,737.16,6.01438]
[1609570320264,0.16530724,737.32,737.16,6.01438]
[1609570320467,0.16530724,737.32,737.12,4.573]
[1609570320869,0.16530673,737.35,737.12,4.573]
[1609570321368,1.98368073,737.52,737.12,4.573]
[1609570321369,0.16529759,737.36,737.12,4.573]
[1609570321569,0.16529759,737.36,737.24,6.01438]
[1609570322069,0.16529759,737.36,737.12,4.573]
[1609570323674,0.16529759,737.36,737.28,6.01438]
[1609570323875,6.01438,737.37,737.28,6.01438]
[1609570325075,6.01438,737.37,737.28,10.11538]
[1609570325276,0.16528333,737.43,737.28,10.11538]
[1609570325474,0.16528333,737.43,737.28,9.71858]
[1609570325675,0.16528333,737.43,737.42,6.01438]
[1609570325875,11.1809,737.6,737.42,6.01438]
[1609570325876,0.16528034,737.46,737.42,6.01438]
[1609570326677,0.16527389,737.5,737.42,6.01438]
[1609570327078,0.16526253,737.51,737.42,6.01438]
[1609570327979,0.16526146,737.55,737.42,6.01438]
[1609570328179,0.16526146,737.55,737.28,4.101]
[1609570328781,0.16525869,737.56,737.28,4.101]
[1609570329581,0.16523953,737.6,737.55,6.01438]
[1609570329780,0.16523953,737.6,737.55,9.69738]
[1609570329980,6.01438,737.68,737.55,9.69738]
[1609570329981,0.1652337,737.68,737.55,9.69738]
[1609570330783,0.16522592,737.73,737.55,9.69738]
[1609570331582,0.16522222,737.77,737.72,6.01438]
[1609570332484,0.16521868,737.81,737.72,6.01438]
[1609570333184,11.4809,738.01,737.72,6.01438]
[1609570333185,0.16521164,737.84,737.72,6.01438]
[1609570333589,0.16521164,737.84,737.83,6.01438]
[1609570334785,1.66575831,738.0,737.83,21.01438]
[1609570335585,1.66575831,738.0,737.99,6.01438]
[1609570335786,1.98168546,738.03,737.99,6.01438]
[1609570336787,1.98160939,738.39,737.99,6.01438]
[1609570337587,1.98160939,738.39,738.37,6.01438]
[1609570337786,2.64214586,738.47,738.37,6.01438]
[1609570337787,1.9816662,738.4,738.37,6.01438]
[1609570338387,1.98169936,738.42,738.37,6.01438]
[1609570339288,1.98169541,738.4,738.2,4.036]
[1609570339687,6.01438,738.21,738.2,4.036]
[1609570341888,7.80858681,738.21,738.2,4.036]
[1609570342389,10.45167348,738.21,738.2,4.036]
[1609570342689,8.65746667,738.21,738.2,4.036]
[1609570342889,8.65746667,738.21,737.92,3.337]
[1609570343090,1.79436305,738.21,737.99,83.2836]
[1609570343293,1.79436305,738.21,737.99,87.8436]
[1609570343492,1.98212118,738.18,737.99,87.8436]
[1609570343692,1.98212118,738.18,738.17,6.01438]
[1609570343892,1.98212118,738.18,738.17,10.91838]
[1609570345194,1.98178881,738.28,738.17,10.91838]
[1609570345592,1.98178881,738.28,738.27,6.01438]
[1609570346494,1.98185472,738.39,738.17,4.904]
[1609570347595,6.01438,738.33,738.27,6.01438]
[1609570347794,6.01438,738.33,738.17,4.904]
[1609570348995,6.01438,738.33,737.99,4.56]
[1609570349196,6.01438,738.33,737.79,107.897]
[1609570349399,1.98245189,738.19,737.79,107.897]
[1609570349596,1.98245189,738.19,738.1,6.01438]
[1609570349796,1.98245189,738.19,738.1,10.73938]
[1609570350196,2.64336838,738.16,738.1,4.725]
[1609570351396,17.64336838,738.16,738.1,4.725]
[1609570351596,6.01438,738.11,737.55,3.683]
[1609570351796,21.01438,738.11,737.55,3.683]
[1609570351998,24.70938,738.11,737.52,83.1582]
[1609570352197,9.70938,738.11,737.52,83.1582]
[1609570352900,1.983479,737.74,737.52,83.1582]
[1609570353701,1.983479,737.74,737.73,6.01438]
[1609570353900,1.983479,737.74,737.73,3.48]
[1609570354604,1.9832852,737.77,737.73,3.48]
[1609570355201,2.64438027,737.84,737.73,3.48]
[1609570355601,6.01438,737.74,737.73,3.48]
[1609570356805,2.64438027,737.84,737.73,3.48]
[1609570357408,1.98327566,737.84,737.73,3.48]
[1609570357606,6.01438,737.74,737.73,3.48]
[1609570358307,1.9832082,737.87,737.73,3.48]
[1609570359108,1.9832082,737.87,737.72,80.6689]
[1609570359709,1.9832082,737.87,737.86,6.01438]
[1609570359911,1.9832082,737.87,737.86,10.61338]
[1609570360911,1.98258749,738.05,737.86,10.61338]
[1609570361611,1.98258749,738.05,738.04,6.01438]
[1609570362210,1.98258749,738.05,738.01,4.931]
[1609570363012,1.98252976,738.16,738.01,4.931]
[1609570363813,6.01438,738.02,738.01,4.931]
[1609570366013,6.01438,738.02,737.86,4.599]
[1609570366315,6.01438,738.02,737.7,6.01438]
[1609570367717,6.01438,737.71,737.7,6.01438]
[1609570370016,6.01438,737.71,737.52,79.1571]
[1609570371718,1.98316849,737.88,737.63,6.01438]
[1609570372018,1.98316849,737.88,737.63,10.18238]
[1609570372619,1.98315217,737.89,737.63,10.18238]
[1609570373718,6.01438,737.64,737.63,10.18238]
[1609570376722,1.98309253,737.89,737.63,10.18238]
[1609570377023,33.18604762,738.41,737.63,10.18238]
[1609570377024,1.98296346,737.93,737.63,10.18238]
[1609570377723,1.98296346,737.93,737.82,6.01438]
[1609570377923,1.98296346,737.93,737.82,9.41838]
[1609570378523,1.98296346,737.93,737.82,3.404]
[1609570379326,1.9831758,737.91,737.82,3.404]
[1609570379626,1.98315077,737.83,737.82,3.404]
[1609570379831,7.99753077,737.83,737.82,3.404]
[1609570380031,22.99753077,737.83,737.82,3.404]
[1609570380231,26.48602636,737.83,737.14,89.4679]
[1609570381834,6.01438,737.17,737.14,95.48228]
[1609570382935,6.01438,737.17,736.67,14.25290104]
[1609570383135,6.01438,737.17,736.54,14.27559687]
[1609570383735,6.01438,737.01,736.86,6.01438]